Cogmind - Beta 12 @@@ ROGUE MODE // 2023.03.18 @ 12:36:21 Player: Inkie Result: Self-destructed Performance ------------- Evolutions (1) 500 Regions Visited (3) 600 Robots Destroyed (53) 265 Value Destroyed (1481) 1481 Prototype IDs (4) 80 Alien Tech Used (0) 0 Bonus (73) 73 TOTAL SCORE: 2999 Bonus ------- High Alert Combat Kills 73 Cogmind --------- Core Integrity 56/400 Matter 271/300 Energy 280/280 System Corruption 0% Temperature Warm (138) Movement Treading (320) Ox2 Location -9/Materials Parts ------- > --- POWER (1) -------- Cooled Ion Engine > --- PROPULSION (2) --- Light Treads Improved Treads > --- UTILITY (4) ------ Huge Storage Unit Improved Targeting Computer Light Armor Plating > --- WEAPON (2) ------- Improved Medium Laser Improved Assault Rifle > --- INVENTORY (25) --- Improved Ion Engine Light Treads Wheel Compact Wheel Cooling System Large Storage Unit Improved Propulsion Shielding Light Armor Plating Medium Armor Plating Hacking Suite Faulty Heavy EM Shotgun Heavy EM Shotgun Faulty Heavy EM Shotgun Autogun Shotgun Shotgun Rocket Launcher Plasma Cutter Heavy Hammer Peak State ------------ > --- POWER ------------ Cooled Ion Engine > --- PROPULSION ------- Light Treads Improved Treads > --- UTILITY ---------- Huge Storage Unit Improved Targeting Computer Light Armor Plating Medium Armor Plating > --- WEAPON ----------- Improved Medium Laser Improved Assault Rifle > --- INVENTORY -------- Improved Ion Engine Light Treads Wheel Compact Wheel Cooling System Large Storage Unit Improved Propulsion Shielding Light Armor Plating Medium Armor Plating Hacking Suite Heavy EM Shotgun Heavy EM Shotgun Heavy EM Shotgun Autogun Shotgun Shotgun Rocket Launcher Plasma Cutter Heavy Hammer [Rating: 22] Favorites ----------- Power Cooled Ion Engine Engine Cooled Ion Engine Propulsion Light Treads Treads Light Treads Wheel Wheel Utility Improved Targeting Computer Device Improved Heat Sink Storage Large Storage Unit Processor Improved Targeting Computer Protection Medium Armor Plating Weapon Medium Laser Energy Gun Medium Laser Ballistic Gun Improved Assault Rifle Impact Weapon Heavy Hammer Build | -11 -10 -10 -9 ------- Run | Jun Mat Min Mat Slots Evolved 2 | . . . 2 Power . | . . . . Propulsion . | . . . . Utility 2 | . . . 2 Weapon . | . . . . Parts Attached 35 | 6 2 . 27 Power 6 | 1 1 . 4 Engine 6 | 1 1 . 4 Core . | . . . . Reactor . | . . . . Propulsion 12 | 2 . . 10 Treads 11 | 2 . . 9 Leg . | . . . . Wheel 1 | . . . 1 Hover . | . . . . Flight . | . . . . Utility 11 | 1 1 . 9 Device 1 | . . . 1 Storage 3 | 1 1 . 1 Processor 2 | . . . 2 Hackware . | . . . . Protection 5 | . . . 5 Artifact . | . . . . Weapon 6 | 2 . . 4 Energy Gun 3 | 2 . . 1 Energy Cannon . | . . . . Ballistic Gun 2 | . . . 2 Ballistic Cannon . | . . . . Launcher . | . . . . Special Weapon . | . . . . Impact Weapon 1 | . . . 1 Slashing Weapon . | . . . . Piercing Weapon . | . . . . Special Melee Weapon . | . . . . Unidentified Prototypes 4 | . . . 4 Parts Lost 12 | . 1 . 11 Power 2 | . 1 . 1 Propulsion 4 | . . . 4 Utility 3 | . . . 3 Weapon 3 | . . . 3 Highest Loss Streak 4 | . 1 . 4 To Critical Strikes . | . . . . Average Slot Usage (%) 91 | . 82 100 90 Engine 11 | . 8 14 10 Treads 22 | . 28 28 19 Storage 19 | . 16 28 17 Processor 8 | . . . 11 Protection 5 | . . . 7 Energy Gun 13 | . 28 28 7 Ballistic Gun 6 | . . . 8 Impact Weapon 2 | . . . 4 Naked Turns . | . . . . Heaviest Build 104 | 11 31 31 104 Greatest Support 43 | 40 40 20 43 Greatest Overweight (x) 3 | 3 1 1 3 Average Overweight (x) . | . . 1 . Largest Inventory Capacity 25 | 8 15 15 25 Average Capacity 15 | 7 9 15 17 Most Carried 19 | 1 5 7 19 Average Carried 9 | . 3 5 12 Final Capacity 25 | 8 15 15 25 Final Carried 19 | 1 5 7 19 Class Distribution -------------------- 100% | Mutant Dominant Class ---------------- Mutant | -10/Materials Mutant | -10/Mines Mutant | -9/Materials Resources | -11 -10 -10 -9 ----------- Run | Jun Mat Min Mat Matter Collected 722 | 223 37 20 442 Remotely . | . . . . Salvage Created 1910 | . 208 14 1688 Parts 84 | . 8 . 76 Haulers Intercepted 2 | . . . 2 Recyclers Shooed . | . . . . Parts Field Recycled . | . . . . Retrieved Matter . | . . . . Parts Self-Destructed . | . . . . Prevented . | . . . . Kills | -11 -10 -10 -9 ------- Run | Jun Mat Min Mat Combat Hostiles Destroyed 48 | . 6 1 41 Melee 6 | . . . 6 Guns 35 | . 6 1 28 Classes Destroyed 8 | . 2 1 5 Worker 3 | . . . 3 Hauler 2 | . . . 2 Operator 1 | . . . 1 Swarmer 12 | . 2 . 10 Grunt 25 | . 4 . 21 Duelist 1 | . . . 1 Sentry 9 | . . . 9 Assembled 1 | . . 1 . Best Kill Streak 6 | . 2 1 6 Combat Bots Only 6 | . 2 1 6 Max Kills in Single Turn 2 | . 1 1 2 Gunslinging . | . . . . Exploded . | . . . . Melee 1 | . . . 1 Uniques/NPCs Destroyed . | . . . . Combat | -11 -10 -10 -9 -------- Run | Jun Mat Min Mat Damage Taken 2327 | . 246 59 2022 Core 406 | . 62 . 344 Absorbed by Shields . | . . . . Redirected to Shielding 13 | . . . 13 Regen/Repaired (Parts) 115 | . . . 115 Core Remaining (%) 87 | 100 . 75 . Volleys Fired 127 | . 18 4 105 Largest 2 | . 2 2 2 Hottest 90 | . 90 90 90 Shots Fired 231 | . 36 8 187 Gun 231 | . 36 8 187 Cannon . | . . . . Launcher . | . . . . Special . | . . . . Kinetic 77 | . . . 77 Thermal 154 | . 36 8 110 Explosive . | . . . . Electromagnetic . | . . . . Robot Hit Streak 16 | . 6 5 16 Robot Miss Streak 4 | . 2 1 4 Penetration Max . | . . . . Secondary Targets 8 | . 3 . 5 Max Gunslinging Chain 1 | . 1 . 1 Shots Hit Robots 202 | . 25 6 171 Core Hits 68 | . 12 2 54 Critical Kills 1 | . . . 1 Critical Parts Destroyed 8 | . . . 8 Critical Strikes 14 | . 1 . 13 Burn 5 | . 1 . 4 Smash 9 | . . . 9 Melee Attacks 53 | . . . 53 Impact 53 | . . . 53 Slashing . | . . . . Piercing . | . . . . Sneak Attacks 6 | . . . 6 Combat Hostiles 1 | . . . 1 Follow-up Attacks . | . . . . Damage Inflicted 4142 | . 311 72 3759 Guns 2298 | . 311 72 1915 Cannons . | . . . . Explosions . | . . . . Melee 1844 | . . . 1844 Ramming . | . . . . Kinetic 863 | . . . 863 Thermal 1435 | . 311 72 1052 Explosive . | . . . . Electromagnetic . | . . . . Impact 1844 | . . . 1844 Slashing . | . . . . Piercing . | . . . . Highest Corruption . | . . . . Average Corruption . | . . . . Corruption Purged . | . . . . Corruption Blocked . | . . . . Overload Shots . | . . . . Overflow Damage 520 | . . . 520 Projectiles . | . . . . Explosions . | . . . . Melee 520 | . . . 520 Knockbacks 7 | . . . 7 Impact 7 | . . . 7 Kinetic . | . . . . Secondary . | . . . . Self-Inflicted Damage . | . . . . Shots . | . . . . Rammed 1 | . 1 . . Targets Rammed 1 | . 1 . . Kicked . | . . . . Crushed . | . . . . Highest Temperature 312 | . 312 120 294 Average Temperature 86 | . 103 60 83 Received Heat Transfer 810 | . 120 . 690 Effects 1 | . 1 . . Short Circuit 1 | . 1 . . Siege Activations . | . . . . Robots Corrupted . | . . . . Combat Hostiles . | . . . . Parts Fried 9 | . . . 9 Impact Corruptions 21 | . . . 21 Robots Melted 1 | . . . 1 Combat Hostiles 1 | . . . 1 Parts Melted 13 | . 3 . 10 Heat Transferred 3980 | . 904 198 2878 Parts Sabotaged . | . . . . Parts Stolen . | . . . . Parts Stripped . | . . . . Power Chain Reactions . | . . . . Missiles Intercepted . | . . . . Alert | -11 -10 -10 -9 ------- Run | Jun Mat Min Mat Peak Influence 650 | . 160 11 650 Initial 11 | . . 11 . Average 200 | . 59 6 280 Maximum Alert Level 2 | . . . 2 Low Security (%) 62 | 100 100 100 44 Level 1 22 | . . . 32 Level 2 15 | . . . 22 Level 3 . | . . . . Level 4 . | . . . . Level 5 . | . . . . High Security . | . . . . Max Security . | . . . . Squads Dispatched 9 | . 1 . 8 Investigation 3 | . . . 3 Extermination . | . . . . Reinforcement 6 | . 1 . 5 Assault . | . . . . Garrison . | . . . . Intercept . | . . . . Searches Triggered . | . . . . Construction Impeded . | . . . . Haulers Reinforced . | . . . . Active Scanning Responses . | . . . . Cargo Convoy Interrupts . | . . . . Stealth | -11 -10 -10 -9 --------- Run | Jun Mat Min Mat Distress Signals 5 | . . . 5 Communications Jammed . | . . . . Distress Signals . | . . . . Times Spotted 81 | . 14 1 66 Peak Tracking Total 5 | . 3 1 5 Tactical Retreats 6 | . 1 . 5 Traps | -11 -10 -10 -9 ------- Run | Jun Mat Min Mat Traps Triggered 2 | . . . 2 Indirectly . | . . . . Trap Hack Attempts . | . . . . Triggered . | . . . . Disarmed 6 | . 6 . . Reprogrammed . | . . . . Reused . | . . . . Traps Extracted . | . . . . Installed . | . . . . Triggered 2 | . . . 2 Machines | -11 -10 -10 -9 ---------- Run | Jun Mat Min Mat Machines Disabled 1 | . . . 1 Max in Single Turn 1 | . . . 1 Machines Repaired . | . . . . Machines Sabotaged . | . . . . Overloaded Fab Kills . | . . . . Hacking | -11 -10 -10 -9 --------- Run | Jun Mat Min Mat Machines Accessed 7 | . 1 . 6 Terminals 5 | . 1 . 4 Fabricators . | . . . . Repair Stations 2 | . . . 2 Recycling Units . | . . . . Scanalyzers . | . . . . Garrison Access . | . . . . Total Hacks 16 | . 4 . 12 Successful 5 | . 2 . 3 Failed 11 | . 2 . 9 Catastrophic 3 | . 1 . 2 Database Lockouts . | . . . . Manual 12 | . 4 . 8 Terminals 12 | . 4 . 8 Fabricators . | . . . . Repair Stations 4 | . . . 4 Recycling Units . | . . . . Scanalyzers . | . . . . Garrison Access . | . . . . Terminal Hacks 2 | . 2 . . Disarm Traps 2 | . 2 . . Fabricator Hacks . | . . . . Repair Station Hacks 3 | . . . 3 Scan Component 2 | . . . 2 Repair 1 | . . . 1 Recycling Unit Hacks . | . . . . Scanalyzer . | . . . . Garrison Access Hacks . | . . . . Unauthorized Hacks . | . . . . Terminals . | . . . . Fabricators . | . . . . Repair Stations . | . . . . Recycling Units . | . . . . Scanalyzers . | . . . . Garrison Access . | . . . . Data Cores Recovered . | . . . . Used . | . . . . Hacking Detections 6 | . 1 . 5 Full Trace Events 1 | . . . 1 Feedback Events . | . . . . Feedback Blocked . | . . . . Robot Schematics Acquired . | . . . . Robots Built . | . . . . Authchips . | . . . . Time . | . . . . Total Robot Build Rating . | . . . . Part Schematics Acquired . | . . . . Parts Built . | . . . . Authchips . | . . . . Time . | . . . . Total Part Build Rating . | . . . . Parts Repaired 1 | . . . 1 Time 26 | . . . 26 Parts Recycled . | . . . . Recycled Matter . | . . . . Retrieved Matter . | . . . . Retrieved Components . | . . . . Parts Scanalyzed . | . . . . Part Schematics Acquired . | . . . . Parts Damaged . | . . . . Bothacking | -11 -10 -10 -9 ------------ Run | Jun Mat Min Mat Used RIF Installer . | . . . . Robots Hacked . | . . . . Non-combat . | . . . . Combat . | . . . . Robot Hacks Applied . | . . . . Relay Couplers Released . | . . . . Fabnet Peak Effective % . | . . . . Robots Rewired . | . . . . Allies Hacked . | . . . . Hacks Repelled . | . . . . Allies | -11 -10 -10 -9 -------- Run | Jun Mat Min Mat Total Allies . | . . . . Largest Group . | . . . . Highest-Rated Group . | . . . . Highest-Rated Ally . | . . . . Total Orders . | . . . . Ally Attacks . | . . . . Total Damage . | . . . . Kills . | . . . . Allies Corrupted . | . . . . Allies Melted . | . . . . Intel | -11 -10 -10 -9 ------- Run | Jun Mat Min Mat Robot Analysis Total . | . . . . Derelict Logs Recovered . | . . . . Drone Launches . | . . . . Drone Recoveries . | . . . . Exploration | -11 -10 -10 -9 ------------- Run | Jun Mat Min Mat Turns Passed 3920 | 73 479 689 2679 Spaces Moved 1524 | 47 234 248 995 Core 28 | 28 . . . Treads 1356 | 19 234 248 855 Legs . | . . . . Wheels 140 | . . . 140 Hover . | . . . . Flight . | . . . . Fastest Speed 50 | 50 160 240 110 Average Speed 199 | 135 172 240 198 Slowest Speed 320 | 200 240 240 320 Overloaded Moves . | . . . . Propulsion Burnouts . | . . . . Robots Hopped . | . . . . Cave-ins Triggered . | . . . . Exploration Rate (%) 45 | 4 42 45 89 Regions Visited 3 Branch Regions 1 Pre-discovered Areas 1 | . . 1 . Known Exits Taken . | . . . . Unknown Exits Taken 3 | 1 1 1 . Scrap Searched . | . . . . Spaces Dug 1 | . . . 1 Terrain Destroyed 1 | . . . 1 Melee 1 | . . . 1 Projectile . | . . . . AOE . | . . . . Terrain Rammed . | . . . . Walls Destroyed . | . . . . Machines Disabled . | . . . . Actions | -11 -10 -10 -9 --------- Run | Jun Mat Min Mat Total 2074 | 53 272 335 1414 Wait 301 | . 14 82 205 Move 1521 | 46 233 247 995 Hop . | . . . . Pick Up 28 | 1 4 2 21 Fast Attach 13 | 6 2 . 5 Attach 13 | . . . 13 Detach 1 | . . . 1 Swap 9 | . . . 9 Drop 7 | . . . 7 Fire 127 | . 18 4 105 Melee 53 | . . . 53 Ram . | . . . . Kick . | . . . . Crush 1 | . 1 . . Escape Stasis . | . . . . Rewire . | . . . . Trap . | . . . . Miscellaneous . | . . . . Route ------- -11/Junkyard -10/Materials (discovered 2 exits: *Mat / [*Min]) -10/Mines -9/Materials (discovered 4 exits: [*Mat x2] / [*Min] / [*Sto]) History --------- Turn | Location | Event 12 | -11/Junkyard | Discovered new exit (range 15) 74 | -11/Junkyard | Entered Materials 287 | -10/Materials | Discovered new exit (range 15) 303 | -10/Materials | Build established: Mutant 326 | -10/Materials | Discovered new exit (range 10) 553 | -10/Materials | Entered Mines 581 | -10/Mines | Assembled infested the area 586 | -10/Mines | Assisted by a Guerilla fighting off Assembled 971 | -10/Mines | Learned location of Storage (-9) 1228 | -10/Mines | Discovered new exit (range 7) 1242 | -10/Mines | Entered Materials 1242 | -9/Materials | Evolved 2 slots: Utility x2 1341 | -9/Materials | Discovered new exit (range 8) 1426 | -9/Materials | Lost 4 parts (1p2n1w) 1655 | -9/Materials | Lost 3 parts (1n1u1w) 1660 | -9/Materials | Discovered new exit (range 16) 1711 | -9/Materials | Core integrity fell below 50% 2189 | -9/Materials | Repaired Lgt. Treads 2218 | -9/Materials | Discovered new exit (range 15) 3019 | -9/Materials | Discovered new exit (range 16) 3273 | -9/Materials | Core integrity fell below 20% 3921 | -9/Materials | Self-destructed Last Messages --------------- 03429_ R-06 Scavenger collects Sml. Laser. 03440_ Connecting with Terminal... 03479_ Lgt. Treads destroyed. 03481_ Y-45 Defender destroyed. 03500_ Acquired 33 matter. 03512_ Connecting with Repair Station... >>Scan(Med. Armor Plating) Scanning Med. Armor Plating... Ready to Repair: Med. Armor Plating Rating: 2 Time: 16 03850_ Acquired Rocket Launcher. 03860_ Acquired Autogun. 03902_ Med. Armor Plating destroyed. 03909_ Y-45 Defender destroyed. 03909_ Switching to secondary target: G-34 Mercenary. 03909_ Terminal disabled. 03912_ G-34 Mercenary destroyed. 03918_ Destroyed Backup Power I. Map ----- +----------------------------------------------------+ | | | | | | | | | | | | | | | ?????????????????????????????????????????????????? | | ????######???????????????????????????????????????? | | ????# #???????????????????????????????????????? | | ????# #???????????????????????????????????????? | | ??### #####################################???? | | ??# + ! # #???? | | ??# # # #???? | | ### ###### #???? | | # #######+############################ ##### | | # ## #????????????????????????# # """ | | # ## """ #????????????????????????# # """ | | # ## """ #?????????????????######## # """ | | # ## """ #???????########### # """ | | ## ### #########%# + """ | | ?# #?# """ # *# ^ ^ # | | ?# #?# """ # ]] # """ """ """ # | | ?# #?# """ # ]= # """ """ """ # | | ## ### # ]= + """ """ """ ##### | | # ###+####### "@# """ """ """ | | # #?# #?????# T # #### | | # < #?# #?????# =# #??? | | # #?# #?????# a%# """ """ """ #??? | | # ! #?# #?????##+#####/## """ """ ^""" #??? | | ###%###?# #??????# #???# ?# """ """ """ #??? | | ??# #???# #??????# #???# ?# """ """ """ +??? | | ??#=#???# #??????# #???# ?# #??? | | ??#%#???# #??????# #???# ?# = #??? | | ??#=#???# #??????# #???# ############"Y"#######? | | ??# ##### ######## ##### #??????????#"""#????????? | | ??#% % % % #??????????#####???###### | | ??################ #??????????????????# | | ??????????######## #??????????????????# " | | ??????????# # #??????????????????# "" | | ??????????# "T" + +??????????????????#= " | | ??????????# ##### #??????????????????# | | ??????????# #???? #??????????????????# = | | ??????????# = #????? #??????????????????###### | | ??????????# #?????? #????????????????######## | | ???????#######+####### ????????????# | | ######?# ???? ???????# T """ | | # # ??? ??????# """ | | # # ??? ??????#[ """ | | # """ + ############ ### ???? ??????# | +----------------------------------------------------+ Best States ------------- Heat Dissipation 42 Energy Generation 14 Energy Capacity 280 Matter Stores 300 Matter Capacity 300 Sight Range 16 Terrain Scan Density 10 Armor Coverage 375 Utility Shielding 33 Evasion (%) 40 Targeting Accuracy 12 Recoil Reduction 2 Item Schematics ----------------- None Robot Schematics ------------------ None Fabricated ------------ Nothing Alien Tech Used ----------------- None Achievements -------------- None Challenges ------------ None Game ------ Seed GaussStormSuite Manual? 0 Play Time 00:23:06 Cumulative 421.1 hours Start 2023.03.18 @ 12:21:55 End 2023.03.18 @ 12:36:21 Sessions 1 Manual Loads 0 Difficulty Rogue Special Mode None Game No. 461 Rogue 452 Adventurer 8 Explorer 1 Win Type - Total 7 Types 4/1/2/0/0/0/0/0/0 Lore% 78 Gallery% 90 Achievement% 71 Wizard Run 0 Options --------- ASCII 0 Keyboard 0 Movement Numpad Keybinds 1 Fullscreen 2 Font 18/Terminus Map View 76x50 Tactical HUD 1 Map Filters NONE Filters NONE Steam 1 RUN: e65f31b3-37d3-4269-bb28-31925c8dd1d2